bitfinex-derivatives/quotes_SOLF0:USTF0_20250820
["timestamp","ask_amount","ask_price","bid_price","bid_amount"]
[1755702084493,5.509,181.52,181.48,5.5102]
[1755702084693,2.46,181.5,181.48,5.5102]
[1755702084890,370.16,181.55,181.41,4.81075799]
[1755702085198,370.16,181.55,181.42,2.99]
[1755702085696,2.46,181.54,181.39,85.2143446]
[1755702085896,7.9695,181.51,181.39,85.2143446]
[1755702086089,370.16,181.55,181.4,2.82]
[1755702086497,2.46,181.52,181.4,2.82]
[1755702086695,2.46,181.52,181.44,2.82]
[1755702087500,5.5089,181.53,181.44,2.82]
[1755702087694,513.0,181.55,181.44,2.82]
[1755702087999,2.46,181.54,181.44,2.82]
[1755702088194,5.5087,181.53,181.44,2.82]
[1755702088401,513.0,181.55,181.49,5.5096]
[1755702088599,515.46,181.55,181.49,5.5096]
[1755702089093,513.0,181.55,181.5,5.5095]
[1755702089295,2.45,181.54,181.5,5.5095]
[1755702089500,515.45,181.55,181.5,5.5095]
[1755702089696,372.61,181.55,181.44,2.82]
[1755702090706,372.61,181.55,181.48,5.51]
[1755702091001,372.61,181.55,181.44,2.82]
[1755702091002,2.45,181.54,181.44,2.82]
[1755702091191,2.45,181.54,181.47,5.5104]
[1755702091799,2.45,181.54,181.44,2.82]
[1755702091996,2.45,181.53,181.4,2.82]
[1755702092906,2.45,181.53,181.44,5.5111]
[1755702093203,2.45,181.53,181.4,2.82]
[1755702093702,7.26075799,181.53,181.4,2.82]
[1755702094900,7.26075799,181.53,181.46,5.5106]
[1755702095104,2.45,181.52,181.4,2.82]
[1755702095500,5.5105,181.47,181.43,5.5116]
[1755702095700,7.9605,181.47,181.43,5.5116]
[1755702095901,2.45,181.47,181.4,2.82]
[1755702096099,145.27,181.48,181.4,2.82]
[1755702096603,5.5109,181.46,181.4,2.82]
[1755702096806,145.27,181.48,181.33,2.82]
[1755702097204,5.5115,181.44,181.4,5.5124]
[1755702097509,5.5115,181.44,181.32,374.97075799]
[1755702097510,145.27,181.48,181.36,2.82]
[1755702097702,142.82,181.47,181.36,2.82]
[1755702098206,145.27,181.47,181.36,2.82]
[1755702098607,5.5111,181.45,181.36,2.82]
[1755702099002,2.45,181.52,181.36,7.63075799]
[1755702099206,145.27,181.52,181.37,2.82]
[1755702099504,145.27,181.52,181.47,5.5105]
[1755702099705,2.45,181.51,181.42,2.82]
[1755702099903,372.61,181.55,181.42,2.82]
[1755702100112,515.45,181.55,181.46,2.82]
[1755702100607,513.0,181.55,181.46,2.82]
[1755702100908,142.84,181.55,181.46,2.82]
[1755702101110,142.84,181.55,181.44,4.81075799]
[1755702101111,2.45,181.6,181.57,5.5073]
[1755702101311,2.45,181.6,181.41,4.41692147]
[1755702101312,2.45,181.6,181.52,2.82]
[1755702102008,2.45,181.6,181.45,11.0221]
[1755702102009,2.45,181.6,181.46,2.82]
[1755702102311,5.5077,181.56,181.46,2.82]
[1755702102512,2.45,181.6,181.46,2.82]
[1755702103313,5.5071,181.59,181.54,5.5081]
[1755702103510,142.82,181.61,181.49,2.82]
[1755702103909,142.82,181.61,181.54,2.82]
[1755702104310,370.32,181.65,181.54,2.82]
[1755702105404,262.43355642,181.66,181.59,2.82]
[1755702105810,142.8,181.66,181.59,2.82]
[1755702106415,142.8,181.66,181.65,5.505]
[1755702106616,7.9537,181.7,181.65,5.505]
[1755702106818,7.9537,181.7,181.59,2.82]
[1755702106819,2.45,181.69,181.59,2.82]
[1755702107414,145.23,181.71,181.66,5.5046]
[1755702107619,150.7332,181.71,181.62,2.82]
[1755702107810,145.23,181.71,181.62,2.82]
[1755702108011,145.23,181.71,181.69,5.5036]
[1755702108012,142.78,181.71,181.69,5.5036]
[1755702108211,142.78,181.71,181.65,2.82]
[1755702108508,370.28,181.75,181.65,2.82]
[1755702108712,142.78,181.76,181.65,2.82]
[1755702108912,142.78,181.76,181.74,5.5021]
[1755702109111,5.5002,181.81,181.69,2.82]
[1755702109314,142.74,181.82,181.69,2.82]
[1755702109524,145.19,181.82,181.69,2.82]
[1755702109715,5.5007,181.8,181.69,2.82]
[1755702110021,145.19,181.82,181.69,2.82]
[1755702110515,145.19,181.82,181.75,5.5017]
[1755702110719,145.19,181.82,181.69,2.82]
[1755702111313,5.5005,181.8,181.69,2.82]
[1755702111820,5.5005,181.8,181.75,5.5018]
[1755702112019,7.9505,181.8,181.75,5.5018]
[1755702112221,142.74,181.82,181.69,2.82]
[1755702112419,2.45,181.81,181.69,2.82]
[1755702112619,2.45,181.81,181.73,5.5023]
[1755702112819,5.5011,181.78,181.73,5.5023]
[1755702113025,2.45,181.81,181.69,2.82]
[1755702113222,2.45,181.81,181.74,5.5021]
[1755702113418,2.45,181.81,181.69,2.82]
[1755702113419,5.5005,181.8,181.69,2.82]
[1755702113724,2.45,181.81,181.74,5.5021]
[1755702114019,2.45,181.81,181.69,2.82]
[1755702114224,2.45,181.8,181.76,5.5017]
[1755702114924,2.45,181.8,181.77,5.5013]
[1755702115113,142.74,181.82,181.72,2.82]
[1755702115317,2.45,181.81,181.75,5.5018]
[1755702115820,2.45,181.81,181.72,2.82]
[1755702116818,142.74,181.82,181.72,2.82]
[1755702117022,145.19,181.82,181.75,5.502]
[1755702117219,145.19,181.82,181.72,2.82]
[1755702117618,145.19,181.82,181.75,5.5017]
[1755702117818,145.19,181.82,181.72,2.82]
[1755702118220,2.45,181.82,181.72,2.82]
[1755702118724,2.45,181.82,181.76,5.5017]
[1755702119023,2.45,181.82,181.72,2.82]
[1755702119916,2.45,181.82,181.77,5.5013]
[1755702120117,2.45,181.81,181.72,2.82]
[1755702120316,2.45,181.81,181.68,3.01]
[1755702120719,145.03,181.81,181.68,3.01]
[1755702120922,2.45,181.8,181.74,5.5021]
[1755702121122,2.45,181.8,181.68,3.01]
[1755702121523,2.45,181.8,181.74,5.5023]
[1755702121918,2.45,181.8,181.68,3.01]
[1755702122119,2.45,181.8,181.73,5.5025]
[1755702122319,2.45,181.8,181.68,3.01]
[1755702123122,142.58,181.81,181.68,3.01]
[1755702123123,142.58,181.81,181.73,3.01]
[1755702123327,145.03,181.81,181.68,7.82075799]
[1755702123529,2.45,181.8,181.68,3.01]
[1755702124121,2.45,181.8,181.72,5.5026]
[1755702124330,2.45,181.8,181.68,3.01]
[1755702124621,2.45,181.8,181.61,4.80838]
[1755702124622,2.45,181.8,181.63,4.81075799]
[1755702124822,4.81075799,181.79,181.64,3.01]
[1755702125030,2.45,181.78,181.64,3.01]
[1755702125927,7.26075799,181.78,181.64,3.01]
[1755702126123,2.45,181.77,181.64,3.01]
[1755702128029,4.81075799,181.73,181.61,4.80838]
[1755702128221,142.54,181.72,181.61,4.80838]
[1755702128421,2.45,181.71,181.61,4.80838]
[1755702128926,2.45,181.71,181.62,3.01]
[1755702129222,2.45,181.75,181.62,3.01]
[1755702129531,144.97,181.75,181.62,3.01]
[1755702129826,2.45,181.74,181.62,3.01]
[1755702130022,4.81075799,181.73,181.62,3.01]
[1755702130231,2.45,181.72,181.62,3.01]
[1755702130624,2.45,181.72,181.66,5.5045]
[1755702130820,2.45,181.72,181.62,3.01]
[1755702131629,2.45,181.72,181.66,5.5046]
[1755702131925,2.45,181.72,181.62,3.01]
[1755702132321,2.45,181.72,181.65,5.5049]
[1755702132530,2.45,181.72,181.62,3.01]
[1755702133529,2.45,181.72,181.67,5.5042]
[1755702133827,2.45,181.74,181.62,3.01]
[1755702135119,2.45,181.74,181.64,5.5051]
[1755702135321,2.45,181.74,181.62,3.01]
[1755702137022,142.54,181.75,181.63,3.01]
[1755702137327,142.54,181.75,181.72,5.5026]
[1755702137630,2.45,181.79,181.63,3.01]
[1755702137631,2.45,181.79,181.64,3.01]
[1755702139530,2.45,181.76,181.64,3.01]
[1755702140131,2.45,181.76,181.66,5.5046]
[1755702140435,2.45,181.76,181.64,3.01]
[1755702140634,2.45,181.76,181.65,5.5048]
[1755702140836,2.45,181.76,181.64,3.01]
[1755702141932,2.45,181.76,181.65,5.5048]
[1755702142129,2.45,181.76,181.64,3.01]
[1755702142428,2.45,181.76,181.66,5.5046]
[1755702142824,2.45,181.76,181.64,3.01]
[1755702143039,2.45,181.76,181.66,5.5046]
[1755702143535,2.45,181.76,181.65,5.505]
[1755702144035,4.81075799,181.75,181.67,5.5043]
[1755702144633,4.81075799,181.75,181.68,5.5041]
[1755702145036,4.81075799,181.75,181.64,3.01]
[1755702145239,2.45,181.76,181.64,3.01]
[1755702145437,2.45,181.76,181.69,5.5038]
[1755702145835,2.45,181.76,181.67,3.09]
[1755702147040,2.45,181.76,181.69,5.5036]
[1755702147638,2.45,181.76,181.68,5.504]
[1755702147837,2.45,181.76,181.67,3.09]
[1755702148337,4.81075799,181.79,181.67,3.09]
[1755702148938,2.46,181.8,181.67,3.09]
[1755702149441,2.46,181.8,181.72,5.5027]
[1755702150142,2.46,181.8,181.7,3.09]
[1755702150744,2.46,181.8,181.73,5.5023]
[1755702151244,2.46,181.8,181.72,5.5028]
[1755702152239,2.46,181.8,181.73,5.5026]
[1755702152450,3.08374799,181.78,181.7,3.09]
[1755702152742,3.08374799,181.8,181.75,5.5018]
[1755702153044,5.54374799,181.8,181.75,8.5918]
[1755702153747,2.46,181.79,181.74,5.5022]
[1755702153945,2.46,181.79,181.71,3.09]
[1755702154140,3.08374799,181.77,181.71,3.09]
[1755702154346,5.54374799,181.77,181.67,3.09]
[1755702154542,3.08374799,181.77,181.67,3.09]
[1755702154736,3.08374799,181.8,181.67,3.09]
[1755702155142,2.46,181.76,181.67,3.09]
[1755702155740,2.46,181.76,181.68,5.5039]
[1755702155938,3.08374799,181.74,181.67,3.09]
[1755702156140,2.46,181.73,181.63,3.09]
[1755702156737,5.54374799,181.73,181.63,3.09]
[1755702156947,3.08374799,181.73,181.63,3.09]
[1755702157248,3.08374799,181.76,181.63,6.17374799]
[1755702157542,2.46,181.77,181.63,6.17374799]
[1755702157543,2.46,181.77,181.69,3.09]
[1755702157743,5.54374799,181.77,181.69,3.09]
[1755702158346,5.54374799,181.77,181.65,3.09]
[1755702158347,2.46,181.77,181.65,3.09]
[1755702160050,2.46,181.77,181.68,5.5039]
[1755702160439,2.46,181.77,181.65,3.09]
[1755702160640,2.46,181.77,181.67,5.5043]
[1755702160845,4.79829259,181.75,181.65,3.09]
[1755702161050,6.12889475,181.79,181.61,4.80838]
[1755702161350,2.46,181.77,181.62,3.09]
[1755702161654,142.48,181.78,181.62,3.09]
[1755702161655,2.46,181.74,181.62,3.09]
[1755702161852,2.46,181.74,181.63,5.5055]
[1755702162348,2.46,181.74,181.63,3.09]
[1755702162847,2.46,181.74,181.67,5.5042]
[1755702163548,2.46,181.74,181.68,5.5041]
[1755702163951,2.46,181.74,181.66,3.09]
[1755702164346,142.48,181.75,181.66,3.09]
[1755702164744,142.48,181.75,181.61,4.80838]
[1755702164745,142.48,181.75,181.73,3.09]
[1755702165054,142.48,181.75,181.74,3.09]
[1755702165255,144.92,181.82,181.75,5.5017]
[1755702165556,144.92,181.82,181.74,3.09]
[1755702165850,370.16,181.85,181.74,3.09]
[1755702166954,2.46,181.84,181.74,3.09]
[1755702167154,4.79829259,181.83,181.66,4.41818868]
[1755702167355,2.46,181.82,181.7,3.09]
[1755702168559,2.46,181.78,181.7,3.09]
[1755702168856,2.46,181.78,181.63,9.21648127]
[1755702169050,2.46,181.78,181.62,380.8714]
[1755702169051,144.9,181.78,181.66,3.09]
[1755702169250,149.69829259,181.78,181.66,3.09]
[1755702170050,149.69829259,181.78,181.7,5.5034]
[1755702170252,2.46,181.77,181.66,3.09]
[1755702170452,2.46,181.77,181.67,5.5044]
[1755702170856,2.46,181.77,181.66,3.09]
[1755702171157,2.46,181.77,181.67,5.5044]
[1755702171358,4.79829259,181.76,181.67,5.5044]
[1755702171559,4.79829259,181.76,181.68,5.5041]
[1755702172161,4.79829259,181.76,181.67,5.5043]
[1755702172661,4.79829259,181.76,181.66,8.5947]
[1755702172863,4.79829259,181.76,181.66,3.09]
[1755702173254,4.79829259,181.76,181.67,5.5044]
[1755702173455,2.46,181.75,181.66,3.09]
[1755702173757,2.46,181.75,181.66,8.5947]
[1755702174455,4.79829259,181.72,181.61,4.80838]
[1755702174664,144.88,181.71,181.61,4.80838]
[1755702174860,144.88,181.71,181.63,5.5054]
[1755702175156,2.46,181.7,181.61,4.80838]
[1755702175358,142.42,181.71,181.61,4.80838]
[1755702175359,7.25829259,181.67,181.61,4.80838]
[1755702178964,7.25829259,181.67,181.56,3.09]
[1755702178965,2.45,181.65,181.56,3.09]
[1755702179164,142.44,181.64,181.56,3.09]
[1755702180051,142.44,181.64,181.6,2.94]
[1755702180259,4.79829259,181.68,181.61,2.94]
[1755702180465,142.42,181.67,181.61,2.94]
[1755702181061,142.42,181.67,181.63,2.94]
[1755702181258,142.42,181.67,181.64,2.94]
[1755702182259,142.42,181.67,181.54,4.79829259]
[1755702182260,142.42,181.67,181.59,2.94]
[1755702183257,2.45,181.66,181.5,15.43718868]
[1755702183458,2.45,181.66,181.55,2.94]
[1755702183864,4.79829259,181.63,181.55,2.94]
[1755702184061,4.79829259,181.63,181.56,5.5075]
[1755702184256,4.79829259,181.63,181.55,2.94]
[1755702184462,4.79829259,181.63,181.56,5.5076]
[1755702184657,2.45,181.64,181.55,2.94]
[1755702184858,142.42,181.66,181.55,2.94]
[1755702185058,142.42,181.66,181.6,5.5065]
[1755702185264,142.42,181.66,181.59,2.94]
[1755702185673,4.79829259,181.71,181.59,2.94]
[1755702185869,2.45,181.72,181.59,2.94]
[1755702186066,144.87,181.72,181.59,2.94]
[1755702186267,142.42,181.72,181.59,2.94]
[1755702186571,142.42,181.72,181.6,2.94]
[1755702186761,142.42,181.72,181.69,2.94]
[1755702186956,142.42,181.72,181.7,2.94]
[1755702187367,8.57889475,181.82,181.61,2.94]
[1755702187667,8.57889475,181.82,181.64,2.94]
[1755702187668,142.44,181.81,181.64,2.94]
[1755702189166,2.45,181.8,181.64,2.94]
[1755702189464,2.45,181.8,181.63,4.79829259]
[1755702189465,2.45,181.8,181.7,5.5035]
[1755702189665,2.45,181.8,181.68,2.94]
[1755702189872,142.42,181.81,181.74,5.5021]
[1755702190171,142.42,181.81,181.73,2.94]
[1755702191374,144.89,181.81,181.73,2.94]
[1755702191783,144.89,181.81,181.73,8.4425]
[1755702191977,142.42,181.81,181.73,2.94]
[1755702192179,370.0,181.85,181.78,5.5008]
[1755702192385,142.4,181.84,181.73,2.94]
[1755702193380,370.0,181.85,181.73,2.94]
[1755702193579,512.4,181.85,181.73,2.94]
[1755702193985,512.4,181.85,181.79,5.5005]
[1755702194480,512.4,181.85,181.77,2.94]
[1755702194782,2.47,181.9,181.77,2.94]
[1755702194980,2.47,181.9,181.86,5.4986]
[1755702195174,2.47,181.9,181.82,2.94]
[1755702195377,142.36,181.91,181.82,2.94]
[1755702195974,142.36,181.91,181.87,5.4983]
[1755702196177,142.36,181.91,181.82,2.94]
[1755702196679,2.47,181.94,181.88,2.94]
[1755702196880,369.9,181.95,181.88,2.94]
[1755702197679,369.9,181.95,181.89,5.4977]
[1755702197874,369.9,181.95,181.88,2.94]
[1755702198085,142.32,181.96,181.88,2.94]
[1755702198381,144.79,181.96,181.88,2.94]
[1755702198585,144.79,181.96,181.91,5.4971]
[1755702198980,144.79,181.96,181.88,2.94]
[1755702199182,144.79,181.96,181.88,5.4978]
[1755702199383,144.79,181.96,181.83,2.94]
[1755702199779,144.79,181.96,181.88,5.4979]
[1755702199981,144.79,181.96,181.86,2.94]
[1755702200877,144.79,181.96,181.76,119.97444478]
[1755702200878,7.26829259,181.95,181.77,2.94]
[1755702201289,2.47,181.95,181.9,5.4972]
[1755702201587,2.47,181.95,181.81,2.94]
[1755702202591,2.47,181.95,181.87,5.4982]
[1755702202887,2.47,181.95,181.81,2.94]
[1755702202888,2.47,181.93,181.81,2.94]
[1755702203487,2.47,181.93,181.89,5.4977]
[1755702204084,2.47,181.93,181.85,2.94]
[1755702204680,142.32,181.96,181.85,2.94]
[1755702205387,2.47,181.95,181.85,2.94]
[1755702205793,2.46,181.93,181.77,3.02]
[1755702209294,2.46,181.93,181.81,3.02]
[1755702210494,2.46,181.89,181.77,3.02]
[1755702211092,4.79829259,181.9,181.78,3.02]
[1755702211690,2.46,181.92,181.78,3.02]
[1755702212999,142.16,181.97,181.78,14.0216]
[1755702213200,2.46,181.96,181.85,3.02]
[1755702213392,4.79829259,181.94,181.81,3.02]
[1755702213592,2.46,181.93,181.89,5.4977]
[1755702213795,2.46,181.93,181.84,3.02]
[1755702215791,2.46,181.93,181.89,5.4976]
[1755702215995,2.46,181.93,181.84,3.02]
[1755702216193,2.46,181.92,181.84,3.02]
[1755702216393,4.79829259,181.94,181.84,3.02]
[1755702216595,2.46,181.96,181.84,3.02]
[1755702216791,2.46,181.96,181.92,5.4967]
[1755702217098,2.46,181.96,181.88,3.02]
[1755702217591,4.79829259,181.99,181.88,3.02]
[1755702217793,4.79829259,181.99,181.96,5.4956]
[1755702218101,2.46,181.98,181.96,5.4956]
[1755702218299,2.46,181.98,181.95,5.4959]
[1755702218501,2.46,181.98,181.91,3.02]
[1755702218902,2.46,181.98,181.93,5.4965]
[1755702219097,2.46,181.98,181.91,3.02]
[1755702219294,2.46,181.98,181.87,3.02]
[1755702219698,7.25829259,182.02,181.87,3.02]
[1755702219899,2.46,182.01,181.87,3.02]
[1755702220300,4.79829259,181.98,181.87,3.02]
[1755702220601,2.46,181.97,181.87,3.02]
[1755702220810,4.79829259,181.99,181.93,5.4963]
[1755702221195,4.79829259,181.99,181.87,3.02]
[1755702221897,2.46,182.0,181.87,3.02]
[1755702222300,2.46,182.04,181.87,3.02]
[1755702222495,369.82,182.05,181.87,3.02]
[1755702222696,369.82,182.05,181.83,4.79829259]
[1755702222697,2.46,182.08,181.92,3.02]
[1755702222897,4.79829259,182.06,181.92,3.02]
[1755702223097,2.46,182.05,181.92,3.02]
[1755702223798,2.46,182.1,181.92,3.02]
[1755702223992,7.25829259,182.1,181.92,3.02]
[1755702224193,2.46,182.08,181.92,3.02]
[1755702224696,2.46,182.08,181.91,15.79229259]
[1755702224697,2.46,182.08,182.05,5.4928]
[1755702224896,2.46,182.08,182.0,3.02]
[1755702225296,2.46,182.12,182.0,3.02]
[1755702225698,2.46,182.12,182.06,5.4926]
[1755702225906,2.46,182.12,182.0,3.02]
[1755702226206,2.46,182.12,182.06,5.4926]
[1755702226506,2.46,182.12,182.0,3.02]
[1755702226799,2.46,182.12,182.03,5.4935]
[1755702227204,2.46,182.12,182.0,3.02]
[1755702227903,2.46,182.12,182.06,5.4924]
[1755702228097,2.46,182.12,182.0,3.02]
[1755702228599,146.85829259,182.14,182.0,3.02]
[1755702228600,2.46,182.09,182.0,3.02]
[1755702229010,2.46,182.09,182.03,5.4933]
[1755702229205,2.46,182.09,182.0,3.02]
[1755702229600,144.48,182.13,182.0,3.02]
[1755702230806,144.48,182.13,182.03,3.02]
[1755702231705,142.02,182.13,182.08,5.4918]
[1755702231901,2.46,182.12,182.08,5.4918]
[1755702232102,2.46,182.12,182.03,3.02]
[1755702232407,142.02,182.13,182.03,3.02]
[1755702232807,142.02,182.13,182.07,5.4923]
[1755702233008,142.02,182.13,182.03,3.02]
[1755702233599,2.46,182.19,182.05,4.79829259]
[1755702233909,2.46,182.19,182.06,3.02]
[1755702234608,2.46,182.18,182.14,5.49]
[1755702234809,2.46,182.18,182.1,3.02]
[1755702235006,2.46,182.18,182.14,5.49]
[1755702235407,2.46,182.18,182.1,3.02]
[1755702235911,2.46,182.18,182.06,3.0]
[1755702236713,141.96,182.17,182.06,3.0]
[1755702237111,4.79829259,182.2,182.13,3.0]
[1755702237112,2.45,182.2,182.13,3.0]
[1755702237509,2.45,182.2,182.08,3.0]
[1755702238409,2.45,182.18,182.08,3.0]
[1755702238812,2.45,182.18,182.04,3.0]
[1755702239211,2.45,182.18,182.11,5.4909]
[1755702239410,2.45,182.18,182.07,3.0]
[1755702240308,4.79829259,182.15,182.03,3.0]
[1755702240504,7.24829259,182.15,182.03,3.0]
[1755702240713,7.24829259,182.15,182.07,5.4921]
[1755702241214,7.24829259,182.15,182.08,5.4919]
[1755702241514,7.24829259,182.15,182.03,3.0]
[1755702241515,141.9,182.17,182.03,3.0]
[1755702241717,141.9,182.17,182.11,5.4911]
[1755702242016,141.9,182.17,182.0,3.0]
[1755702242315,141.9,182.17,182.11,5.4909]
[1755702242515,141.9,182.17,182.08,3.0]
[1755702242719,2.45,182.16,182.08,3.0]
[1755702243309,141.9,182.17,182.08,3.0]
[1755702244620,2.45,182.21,182.08,3.0]
[1755702245011,2.45,182.21,182.12,3.0]
[1755702245207,528.0,182.34,182.13,4.79829259]
[1755702245412,7.24829259,182.33,182.14,3.0]
[1755702245710,150.02829259,182.33,182.14,3.0]
[1755702245910,150.02829259,182.33,182.27,5.4862]
[1755702246115,150.02829259,182.33,182.2,3.0]
[1755702246418,150.02829259,182.33,182.25,5.4867]
[1755702246611,147.57829259,182.33,182.2,3.0]
[1755702246819,4.79829259,182.29,182.16,3.0]
[1755702247017,2.45,182.28,182.16,3.0]
[1755702247213,0.95499451,182.39,182.17,3.0]
[1755702247214,142.78,182.31,182.17,3.0]
[1755702247410,4.79829259,182.34,182.17,3.0]
[1755702247617,145.23,182.33,182.25,5.4866]
[1755702247817,145.23,182.33,182.23,3.0]
[1755702248016,145.23,182.33,182.26,5.4864]
[1755702248218,2.45,182.33,182.23,3.0]
[1755702248413,4.79829259,182.35,182.23,3.0]
[1755702248613,145.43,182.37,182.23,3.0]
[1755702249015,369.08,182.42,182.23,3.0]
[1755702249219,142.94,182.4,182.24,4.79829259]
[1755702249415,142.94,182.4,182.25,3.0]
[1755702249622,2.45,182.38,182.27,5.486]
[1755702249823,2.45,182.38,182.25,3.0]
[1755702249824,2.45,182.38,182.22,3.0]
[1755702250019,2.45,182.36,182.22,3.0]
[1755702250627,2.45,182.36,182.25,3.0]
[1755702251924,2.45,182.33,182.18,3.0]
[1755702252323,2.45,182.36,182.18,7.79829259]
[1755702252527,2.45,182.36,182.19,3.0]
[1755702252732,2.45,182.36,182.28,5.4859]
[1755702252927,2.45,182.36,182.25,3.0]
[1755702253530,2.45,182.36,182.21,3.0]
[1755702253729,2.45,182.36,182.25,5.4867]
[1755702254031,2.45,182.36,182.21,3.0]
[1755702255237,2.45,182.36,182.29,5.4854]
[1755702255438,2.45,182.34,182.21,3.0]
[1755702255936,144.44,182.38,182.21,3.0]
[1755702255937,151.68829259,182.38,182.21,3.0]
[1755702256127,146.89,182.38,182.21,3.0]
[1755702256329,2.45,182.38,182.21,3.0]
[1755702256532,2.45,182.38,182.25,3.0]
[1755702256737,2.45,182.38,182.3,5.4851]
[1755702256938,2.45,182.37,182.25,3.0]
[1755702257532,371.53,182.42,182.25,3.0]
[1755702257833,2.45,182.41,182.32,5.4848]
[1755702258133,2.45,182.41,182.29,3.0]
[1755702258341,4.79829259,182.39,182.21,10.976]
[1755702258540,2.45,182.41,182.25,3.0]
[1755702258729,2.45,182.39,182.25,3.0]
[1755702259438,151.65829259,182.4,182.25,3.0]
[1755702259835,2.45,182.39,182.28,5.4859]
[1755702260035,2.45,182.39,182.25,3.0]
[1755702260434,149.91,182.39,182.32,5.4845]
[1755702260637,2.45,182.39,182.29,3.0]
[1755702260838,149.89,182.39,182.29,3.0]
[1755702261439,369.08,182.42,182.29,3.0]
[1755702262031,369.08,182.42,182.3,3.0]
[1755702262240,2.45,182.41,182.3,3.0]
[1755702262542,2.45,182.41,182.26,3.0]
[1755702262743,2.45,182.37,182.26,3.0]
[1755702262941,147.5,182.36,182.27,5.486]
[1755702263141,7.24829259,182.35,182.22,3.0]
[1755702263337,2.45,182.3,182.22,3.0]
[1755702263538,2.45,182.41,182.22,3.0]
[1755702263742,2.45,182.36,182.22,3.0]
[1755702263938,147.58,182.35,182.22,3.0]
[1755702264440,2.45,182.4,182.34,5.4841]
[1755702264637,150.03,182.4,182.3,3.0]
[1755702265337,2.45,182.4,182.3,3.0]
[1755702266637,2.46,182.4,182.3,3.0]
[1755702266839,147.42,182.39,182.3,3.0]
[1755702267039,147.38,182.39,182.3,3.0]
[1755702268140,147.38,182.39,182.33,5.4843]
[1755702268541,147.38,182.39,182.3,3.0]
[1755702268846,2.46,182.38,182.18,2.83]
[1755702269250,2.46,182.38,182.27,5.4861]
[1755702269648,2.46,182.38,182.24,2.83]
[1755702270836,8.05850765,182.36,182.24,5.4871]
[1755702271042,2.46,182.35,182.19,2.83]
[1755702272047,147.32,182.34,182.27,5.4861]
[1755702272448,147.32,182.34,182.24,2.83]
[1755702273550,147.32,182.34,182.26,5.4864]